fUSD/lending_fUSD_20240612
["ID","MTS","AMOUNT","RATE_DAILY","PERIOD"]
[329227940,1718190649678,-785.1,0.00019315,2]
[329227941,1718190649689,-500.0,0.00019315,2]
[329227942,1718190649699,-500.0,0.00019315,2]
[329227943,1718190649710,-500.0,0.00019315,2]
[329227944,1718190649720,-500.0,0.00019315,2]
[329227945,1718190649731,-562.12,0.00019315,2]
[329227946,1718190649745,-500.0,0.00019315,2]
[329227947,1718190649755,-1460.99,0.00019315,2]
[329227948,1718190649765,-500.0,0.00019315,2]
[329227949,1718190649775,-512.95,0.00019315,2]
[329227950,1718190649786,-500.0,0.00019315,2]
[329227951,1718190649796,-1894.78,0.00019315,2]
[329227952,1718190649806,-500.0,0.00019315,2]
[329227953,1718190649819,-500.0,0.00019315,2]
[329227954,1718190649830,-500.0,0.00019315,2]
[329227955,1718190649840,-500.0,0.00019315,2]
[329227956,1718190649850,-620.08,0.00019315,2]
[329227957,1718190649861,-500.0,0.00019315,2]
[329227958,1718190649872,-1417.63,0.00019315,2]
[329227959,1718190649882,-500.0,0.00019315,2]
[329227960,1718190649895,-500.0,0.00019315,2]
[329227961,1718190649917,-500.0,0.00019315,2]
[329227962,1718190649928,-500.0,0.00019315,2]
[329227963,1718190649938,-500.0,0.00019315,2]
[329227964,1718190649950,-1081.64,0.00019315,2]
[329227965,1718190649961,-518.71882403,0.00019315,2]
[329227966,1718190649972,-500.0,0.00019315,2]
[329227967,1718190649984,-500.0,0.00019315,2]
[329227968,1718190649996,-500.0,0.00019315,2]
[329227969,1718190650006,-500.0,0.00019315,2]
[329227970,1718190650018,-500.0,0.00019315,2]
[329227971,1718190650028,-925.62,0.00019315,2]
[329227972,1718190650039,-500.0,0.00019315,2]
[329227973,1718190650049,-330.80179927,0.00019315,2]
[329227974,1718190650060,-500.0,0.00019315,2]
[329227975,1718190650071,-500.0,0.00019315,2]
[329227976,1718190650082,-500.0,0.00019315,2]
[329227977,1718190650092,-500.0,0.00019315,2]
[329227978,1718190650103,-190.30287114,0.00019315,2]
[329227979,1718190650113,-500.0,0.00019315,2]
[329227980,1718190650124,-519.22071955,0.00019315,2]
[329227981,1718190650135,-531.9387582,0.00019315,2]
[329227982,1718190650146,-500.0,0.00019315,2]
[329227983,1718190650156,-500.0,0.00019315,2]
[329227984,1718190650167,-500.0,0.00019315,2]
[329227985,1718190650180,-646.91,0.00019315,2]
[329227986,1718190650192,-500.0,0.00019315,2]
[329227987,1718190650206,-500.0,0.00019315,2]
[329227988,1718190650219,-500.0,0.00019315,2]
[329227989,1718190650230,-500.0,0.00019315,2]
[329227990,1718190650242,-500.0,0.00019315,2]
[329227991,1718190650252,-500.0,0.00019315,2]
[329227992,1718190650262,-673.77,0.00019315,2]
[329227993,1718190650272,-1357.87,0.00019315,2]
[329227994,1718190650283,-500.0,0.00019315,2]
[329227995,1718190650293,-500.0,0.00019315,2]
[329227996,1718190650303,-500.0,0.00019315,2]
[329227997,1718190650313,-500.31,0.00019315,2]
[329227998,1718190650322,-506.66667071,0.00019315,2]
[329227999,1718190650332,-500.0,0.00019315,2]
[329228000,1718190650344,-868.59,0.00019315,2]
[329228001,1718190650355,-772.74,0.00019315,2]
[329228002,1718190650366,-500.0,0.00019315,2]
[329228003,1718190650375,-546.37,0.00019315,2]
[329228004,1718190650385,-500.0,0.00019315,2]
[329228005,1718190650395,-793.01,0.00019315,2]
[329228006,1718190650405,-500.0,0.00019315,2]
[329228007,1718190650415,-2802.05,0.00019315,2]
[329228008,1718190650425,-500.0,0.00019315,2]
[329228009,1718190650436,-500.0,0.00019315,2]
[329228010,1718190650447,-500.0,0.00019315,2]
[329228011,1718190650457,-500.0,0.00019315,2]
[329228012,1718190650468,-500.0,0.00019315,2]
[329228013,1718190650479,-500.0,0.00019315,2]
[329228014,1718190650491,-500.0,0.00019315,2]
[329228015,1718190650502,-500.0,0.00019315,2]
[329228016,1718190650513,-77.03638273,0.00019315,2]
[329228017,1718190650529,-517.55361727,0.00019315,2]
[329228018,1718190650540,-500.0,0.00019315,2]
[329228019,1718190650551,-500.0,0.00019315,2]
[329228020,1718190650562,-500.0,0.00019315,2]
[329228021,1718190650573,-500.0,0.00019315,2]
[329228022,1718190650583,-500.0,0.00019315,2]
[329228023,1718190650594,-500.0,0.00019315,2]
[329228024,1718190650605,-500.0,0.00019315,2]
[329228025,1718190650616,-759.31,0.00019315,2]
[329228026,1718190650627,-500.0,0.00019315,2]
[329228027,1718190650638,-500.0,0.00019315,2]
[329228028,1718190650648,-500.0,0.00019315,2]
[329228029,1718190650660,-500.0,0.00019315,2]
[329228030,1718190650670,-500.0,0.00019315,2]
[329228031,1718190650681,-500.0,0.00019315,2]
[329228032,1718190650693,-610.21,0.00019315,2]
[329228033,1718190650704,-500.0,0.00019315,2]
[329228034,1718190650717,-500.0,0.00019315,2]
[329228035,1718190650728,-1485.91,0.00019315,2]
[329228036,1718190650741,-1027.08,0.00019315,2]
[329228037,1718190650753,-726.19,0.00019315,2]
[329228038,1718190650763,-500.0,0.00019315,2]
[329228039,1718190650774,-500.0,0.00019315,2]
[329228040,1718190650786,-1153.47,0.00019315,2]
[329228041,1718190650797,-629.91,0.00019315,2]
[329228042,1718190650808,-607.16,0.00019315,2]
[329228043,1718190650818,-963.43,0.00019315,2]
[329228044,1718190650832,-500.0,0.00019315,2]
[329228045,1718190650843,-1709.3,0.00019315,2]
[329228046,1718190650854,-500.0,0.00019315,2]
[329228047,1718190650865,-500.0,0.00019315,2]
[329228048,1718190650876,-500.0,0.00019315,2]
[329228049,1718190650886,-500.0,0.00019315,2]
[329228050,1718190650917,-970.54,0.00019315,2]
[329228051,1718190650929,-500.0,0.00019315,2]
[329228052,1718190650941,-500.0,0.00019315,2]
[329228053,1718190650952,-500.0,0.00019315,2]
[329228054,1718190650963,-1208.16,0.00019315,2]
[329228055,1718190650973,-521.54,0.00019315,2]
[329228056,1718190650984,-534.92,0.00019315,2]
[329228057,1718190650997,-500.0,0.00019315,2]
[329228058,1718190651007,-3013.41,0.00019315,2]
[329228059,1718190651017,-500.0,0.00019315,2]
[329228060,1718190651028,-500.0,0.00019315,2]
[329228061,1718190651038,-500.0,0.00019315,2]
[329228062,1718190651050,-500.0,0.00019315,2]
[329228063,1718190651061,-500.0,0.00019315,2]
[329228064,1718190651072,-500.0,0.00019315,2]
[329228065,1718190651083,-500.0,0.00019315,2]
[329228066,1718190651094,-500.0,0.00019315,2]
[329228067,1718190651105,-500.0,0.00019315,2]
[329228068,1718190651116,-500.0,0.00019315,2]
[329228069,1718190651127,-500.0,0.00019315,2]
[329228070,1718190651137,-518.13,0.00019315,2]
[329228071,1718190651149,-500.0,0.00019315,2]
[329228072,1718190651160,-2308.21,0.00019315,2]
[329228073,1718190651171,-1656.83,0.00019315,2]
[329228074,1718190651182,-500.0,0.00019315,2]
[329228075,1718190651195,-820.75,0.00019315,2]
[329228076,1718190651207,-500.0,0.00019315,2]
[329228077,1718190651219,-500.0,0.00019315,2]
[329228078,1718190651230,-500.0,0.00019315,2]
[329228079,1718190651242,-500.0,0.00019315,2]
[329228080,1718190651253,-500.0,0.00019315,2]
[329228081,1718190651264,-714.47,0.00019315,2]
[329228082,1718190651275,-500.0,0.00019315,2]
[329228083,1718190651285,-500.0,0.00019315,2]
[329228084,1718190651296,-500.0,0.00019315,2]
[329228085,1718190651307,-500.0,0.00019315,2]
[329228086,1718190651317,-500.0,0.00019315,2]
[329228087,1718190651328,-3564.83,0.00019315,2]
[329228088,1718190651339,-500.0,0.00019315,2]
[329228089,1718190651350,-500.0,0.00019315,2]
[329228090,1718190651363,-500.0,0.00019315,2]
[329228091,1718190651373,-500.0,0.00019315,2]
[329228092,1718190651384,-500.0,0.00019315,2]
[329228093,1718190651394,-500.0,0.00019315,2]
[329228094,1718190651405,-500.0,0.00019315,2]
[329228095,1718190651416,-500.0,0.00019315,2]
[329228096,1718190651426,-500.0,0.00019315,2]
[329228097,1718190651437,-500.0,0.00019315,2]
[329228098,1718190651448,-500.0,0.00019315,2]
[329228099,1718190651461,-561.35,0.00019315,2]
[329228100,1718190651473,-500.0,0.00019315,2]
[329228101,1718190651484,-500.0,0.00019315,2]
[329228102,1718190651496,-500.0,0.00019315,2]
[329228103,1718190651508,-150.0,0.00019371,2]
[329228104,1718190651519,-172.91734175,0.000194,2]
[329228105,1718190651530,-177.1930239,0.000194,2]
[329228106,1718190651542,-19947.0005813,0.000194,2]
[329228107,1718190651554,-360.0,0.000194,2]
[329228108,1718190651565,-500.0,0.00019451,2]
[329228109,1718190651577,-500.0,0.00019452,2]
[329228110,1718190651588,-500.0,0.00019452,2]
[329228111,1718190651599,-868.31,0.00019452,2]
[329228112,1718190651610,-500.0,0.00019452,2]
[329228113,1718190651625,-539.20051902,0.00019452,2]
[329228114,1718190651637,-500.0,0.00019452,2]
[329228115,1718190651649,-500.0,0.00019452,2]
[329228116,1718190651660,-606.43,0.00019452,2]
[329228117,1718190651671,-500.0,0.00019452,2]
[329228118,1718190651682,-500.0,0.00019452,2]
[329228119,1718190651693,-500.0,0.00019452,2]
[329228120,1718190651705,-281.36620305,0.00019452,2]
[329228121,1718190651922,-500.0,0.00019452,2]
[329228122,1718190651935,-500.0,0.00019452,2]
[329228123,1718190651947,-500.0,0.00019452,2]
[329228124,1718190651957,-500.0,0.00019452,2]
[329228125,1718190651970,-500.0,0.00019452,2]
[329228126,1718190651982,-500.0,0.00019452,2]
[329228127,1718190651996,-500.0,0.00019452,2]
[329228128,1718190652007,-500.0,0.00019452,2]
[329228129,1718190652019,-500.0,0.00019452,2]
[329228130,1718190652031,-500.0,0.00019452,2]
[329228131,1718190652042,-500.0,0.00019452,2]
[329228132,1718190652054,-500.0,0.00019452,2]
[329228133,1718190652065,-500.0,0.00019452,2]
[329228134,1718190652077,-500.0,0.00019452,2]
[329228135,1718190652088,-150.0,0.00019452,2]
[329228136,1718190652099,-500.0,0.00019452,2]
[329228137,1718190652110,-500.0,0.00019452,2]
[329228138,1718190652121,-500.0,0.00019452,2]
[329228139,1718190652132,-500.0,0.00019452,2]
[329228140,1718190652143,-500.0,0.00019452,2]
[329228141,1718190652154,-500.0,0.00019452,2]
[329228142,1718190652166,-500.0,0.00019452,2]
[329228143,1718190652177,-500.0,0.00019452,2]
[329228144,1718190652189,-500.0,0.00019452,2]
[329228145,1718190652200,-500.0,0.00019452,2]
[329228146,1718190652212,-500.0,0.00019452,2]
[329228147,1718190652223,-500.0,0.00019452,2]
[329228148,1718190652234,-500.0,0.00019452,2]
[329228149,1718190652247,-1034.84,0.00019452,2]
[329228150,1718190652258,-500.0,0.00019452,2]
[329228151,1718190652269,-645.05183504,0.00019452,2]
[329228152,1718190652281,-500.0,0.00019452,2]
[329228153,1718190652292,-500.0,0.00019452,2]
[329228154,1718190652304,-500.0,0.00019452,2]
[329228155,1718190652316,-500.0,0.00019452,2]
[329228156,1718190652327,-500.0,0.00019452,2]
[329228157,1718190652338,-500.0,0.00019452,2]
[329228158,1718190652350,-500.0,0.00019452,2]
[329228159,1718190652361,-500.0,0.00019452,2]
[329228160,1718190652372,-500.0,0.00019452,2]
[329228161,1718190652383,-500.0,0.00019452,2]
[329228162,1718190652394,-500.0,0.00019452,2]
[329228163,1718190652406,-322.67648174,0.00019452,2]
[329228164,1718190652421,-177.32351826,0.00019452,2]
[329228165,1718190652433,-500.0,0.00019452,2]
[329228166,1718190652444,-720.37,0.00019452,2]
[329228167,1718190652456,-491.37039329,0.00019452,2]
[329228168,1718190652466,-500.0,0.00019452,2]
[329228169,1718190652487,-500.0,0.00019452,2]
[329228170,1718190652501,-500.0,0.00019452,2]
[329228171,1718190652514,-500.0,0.00019452,2]
[329228172,1718190652524,-500.0,0.00019452,2]
[329228173,1718190652535,-625.77392833,0.00019452,2]
[329228174,1718190652546,-500.0,0.00019452,2]
[329228175,1718190652558,-500.0,0.00019452,2]
[329228176,1718190652569,-500.0,0.00019452,2]
[329228177,1718190652581,-500.0,0.00019452,2]
[329228178,1718190652592,-500.0,0.00019452,2]
[329228179,1718190652603,-500.0,0.00019452,2]
[329228180,1718190652615,-500.0,0.00019452,2]
[329228181,1718190652626,-500.0,0.00019452,2]
[329228182,1718190652637,-500.0,0.00019452,2]
[329228183,1718190652648,-500.0,0.00019452,2]
[329228184,1718190652659,-500.0,0.00019452,2]
[329228185,1718190652670,-500.0,0.00019452,2]
[329228186,1718190652681,-500.0,0.00019452,2]
[329228187,1718190652692,-591.74,0.00019452,2]
[329228188,1718190652703,-500.0,0.00019452,2]
[329228189,1718190652714,-500.0,0.00019452,2]
[329228190,1718190652725,-500.0,0.00019452,2]
[329228191,1718190652736,-1560.84,0.00019452,2]
[329228192,1718190652752,-500.0,0.00019452,2]
[329228193,1718190652764,-1073.34,0.00019452,2]
[329228194,1718190652775,-1447.62,0.00019452,2]
[329228195,1718190652787,-500.0,0.00019452,2]
[329228196,1718190652799,-500.0,0.00019452,2]
[329228197,1718190652810,-500.0,0.00019452,2]
[329228198,1718190652821,-500.0,0.00019452,2]
[329228199,1718190652835,-623.4,0.00019452,2]
[329228200,1718190652847,-585.79,0.00019452,2]
[329228201,1718190652859,-500.0,0.00019452,2]
[329228202,1718190652870,-500.0,0.00019452,2]
[329228203,1718190652883,-500.0,0.00019452,2]
[329228204,1718190652910,-500.0,0.00019452,2]
[329228205,1718190652922,-500.0,0.00019452,2]
[329228206,1718190652933,-500.0,0.00019452,2]
[329228207,1718190652945,-1053.16,0.00019452,2]
[329228208,1718190652956,-500.0,0.00019452,2]
[329228209,1718190652967,-785.1,0.00019452,2]
[329228210,1718190652978,-500.0,0.00019452,2]
[329228211,1718190652989,-562.12,0.00019452,2]
[329228212,1718190653001,-500.0,0.00019452,2]
[329228213,1718190653012,-1460.99,0.00019452,2]
[329228214,1718190653023,-500.0,0.00019452,2]
[329228215,1718190653034,-512.95,0.00019452,2]
[329228216,1718190653045,-500.0,0.00019452,2]
[329228217,1718190653056,-1894.78,0.00019452,2]
[329228218,1718190653067,-500.0,0.00019452,2]
[329228219,1718190653078,-500.0,0.00019452,2]
[329228220,1718190653089,-500.0,0.00019452,2]
[329228221,1718190653100,-620.08,0.00019452,2]
[329228222,1718190653111,-500.0,0.00019452,2]
[329228223,1718190653122,-1417.63,0.00019452,2]
[329228224,1718190653133,-500.0,0.00019452,2]
[329228225,1718190653145,-500.0,0.00019452,2]
[329228226,1718190653156,-500.0,0.00019452,2]
[329228227,1718190653167,-221.88215965,0.00019452,2]
[329228228,1718190653179,-1081.64,0.00019452,2]
[329228229,1718190653191,-500.0,0.00019452,2]
[329228230,1718190653202,-500.0,0.00019452,2]
[329228231,1718190653218,-925.62,0.00019452,2]
[329228232,1718190653229,-500.0,0.00019452,2]
[329228233,1718190653241,-500.0,0.00019452,2]
[329228234,1718190653251,-500.0,0.00019452,2]
[329228235,1718190653263,-500.0,0.00019452,2]
[329228236,1718190653274,-646.91,0.00019452,2]
[329228237,1718190653285,-500.0,0.00019452,2]
[329228238,1718190653296,-500.0,0.00019452,2]
[329228239,1718190653309,-500.0,0.00019452,2]
[329228240,1718190653321,-500.0,0.00019452,2]
[329228241,1718190653332,-500.0,0.00019452,2]
[329228242,1718190653344,-500.0,0.00019452,2]
[329228243,1718190653355,-673.77,0.00019452,2]
[329228244,1718190653366,-1357.87,0.00019452,2]
[329228245,1718190653377,-500.31,0.00019452,2]
[329228246,1718190653389,-868.59,0.00019452,2]
[329228247,1718190653401,-772.74,0.00019452,2]
[329228248,1718190653412,-500.0,0.00019452,2]
[329228249,1718190653424,-546.37,0.00019452,2]
[329228250,1718190653436,-500.0,0.00019452,2]
[329228251,1718190653448,-793.01,0.00019452,2]
[329228252,1718190653459,-2802.05,0.00019452,2]
[329228253,1718190653470,-500.0,0.00019452,2]
[329228254,1718190653481,-500.0,0.00019452,2]
[329228255,1718190653492,-500.0,0.00019452,2]
[329228256,1718190653503,-500.0,0.00019452,2]
[329228257,1718190653514,-500.0,0.00019452,2]
[329228258,1718190653526,-500.0,0.00019452,2]
[329228259,1718190653537,-594.59,0.00019452,2]
[329228260,1718190653549,-500.0,0.00019452,2]
[329228261,1718190653560,-342.19821865,0.00019452,2]
[329228262,1718190653572,-500.0,0.00019452,2]
[329228263,1718190653583,-500.0,0.00019452,2]
[329228264,1718190653594,-759.31,0.00019452,2]
[329228265,1718190653606,-500.0,0.00019452,2]
[329228266,1718190653618,-500.0,0.00019452,2]
[329228267,1718190653630,-500.0,0.00019452,2]
[329228268,1718190653642,-500.0,0.00019452,2]
[329228269,1718190653654,-500.0,0.00019452,2]
[329228270,1718190653666,-610.21,0.00019452,2]
[329228271,1718190653678,-500.0,0.00019452,2]
[329228272,1718190653690,-989.21257467,0.00019452,2]
[329228273,1718190653707,-496.69742533,0.00019452,2]
[329228274,1718190653719,-1027.08,0.00019452,2]
[329228275,1718190653732,-726.19,0.00019452,2]
[329228276,1718190653748,-500.0,0.00019452,2]
[329228277,1718190653759,-1153.47,0.00019452,2]
[329228278,1718190653770,-629.91,0.00019452,2]
[329228279,1718190653784,-607.16,0.00019452,2]
[329228280,1718190653796,-963.43,0.00019452,2]
[329228281,1718190653808,-562.3858063,0.00019452,2]
[329228282,1718190653821,-1709.3,0.00019452,2]
[329228283,1718190653833,-500.0,0.00019452,2]
[329228284,1718190653845,-500.0,0.00019452,2]
[329228285,1718190653857,-500.0,0.00019452,2]
[329228286,1718190653868,-970.54,0.00019452,2]
[329228287,1718190653880,-500.0,0.00019452,2]
[329228288,1718190653891,-500.0,0.00019452,2]
[329228289,1718190653925,-500.0,0.00019452,2]
[329228290,1718190653937,-1208.16,0.00019452,2]
[329228291,1718190653950,-521.54,0.00019452,2]
[329228292,1718190653963,-534.92,0.00019452,2]
[329228293,1718190653974,-500.0,0.00019452,2]
[329228294,1718190653986,-3013.41,0.00019452,2]
[329228295,1718190654003,-500.0,0.00019452,2]
[329228296,1718190654015,-500.0,0.00019452,2]
[329228297,1718190654026,-500.0,0.00019452,2]
[329228298,1718190654038,-500.0,0.00019452,2]
[329228299,1718190654050,-500.0,0.00019452,2]
[329228300,1718190654062,-500.0,0.00019452,2]
[329228301,1718190654073,-500.0,0.00019452,2]
[329228302,1718190654086,-500.0,0.00019452,2]
[329228303,1718190654098,-500.0,0.00019452,2]
[329228304,1718190654110,-518.13,0.00019452,2]
[329228305,1718190654121,-500.0,0.00019452,2]
[329228306,1718190654135,-2308.21,0.00019452,2]
[329228307,1718190654147,-1656.83,0.00019452,2]
[329228308,1718190654158,-500.0,0.00019452,2]
[329228309,1718190654171,-820.75,0.00019452,2]
[329228310,1718190654183,-500.0,0.00019452,2]
[329228311,1718190654195,-500.0,0.00019452,2]
[329228312,1718190654207,-500.0,0.00019452,2]
[329228313,1718190654220,-500.0,0.00019452,2]
[329228314,1718190654233,-437.02431701,0.00019452,2]
[329228315,1718190654246,-714.47,0.00019452,2]
[329228316,1718190654258,-500.0,0.00019452,2]
[329228317,1718190654270,-500.0,0.00019452,2]
[329228318,1718190654281,-500.0,0.00019452,2]
[329228319,1718190654293,-500.0,0.00019452,2]
[329228320,1718190654304,-3564.83,0.00019452,2]
[329228321,1718190654316,-500.0,0.00019452,2]
[329228322,1718190654327,-500.0,0.00019452,2]
[329228323,1718190654340,-376.69086862,0.00019452,2]
[329228324,1718190654351,-500.0,0.00019452,2]
[329228325,1718190654363,-500.0,0.00019452,2]
[329228326,1718190654374,-500.0,0.00019452,2]
[329228327,1718190654389,-500.0,0.00019452,2]
[329228328,1718190654402,-500.0,0.00019452,2]
[329228329,1718190654413,-500.0,0.00019452,2]
[329228330,1718190654424,-561.35,0.00019452,2]
[329228331,1718190654436,-500.0,0.00019452,2]
[329228332,1718190654449,-500.0,0.00019452,2]
[329228333,1718190654461,-193.73200982,0.00019474,2]
[329228334,1718190654473,-500.0,0.00019499,2]
[329228335,1718190654485,-26242.28101414,0.000195,2]
[329228336,1718190654504,-975.50742252,0.000195,2]
[329228337,1718190654658,-5301.01197096,0.000195,2]
[329228338,1718190654674,-1573.74609435,0.000195,2]
[329228339,1718190655243,-5798.69636043,0.000195,2]
[329228340,1718190655266,-222.61619071,0.00017259,2]
[329228341,1718190655278,-14568.44099173,0.000195,2]
[329228342,1718190655373,-4111.49499531,0.000195,2]
[329228343,1718190655387,-2095.04719739,0.000195,2]
[329228344,1718190655400,-7704.26536754,0.000195,2]
[329228345,1718190655422,-880.21195323,0.000195,2]
[329228346,1718190655482,-712.04599,0.000195,2]
[329228347,1718190655496,-500.0,0.000195,2]
[329228348,1718190655518,-663.79570028,0.000195,2]
[329228349,1718190655942,-2390.62904133,0.000195,2]
[329228350,1718190655979,-1485.11087065,0.000195,2]
[329228351,1718190655998,-576.99195034,0.000195,2]
[329228352,1718190656011,-933.95000001,0.000195,2]
[329228353,1718190656024,-30601.96217995,0.000195,2]
[329228354,1718190656038,-518.90570714,0.000195,2]
[329228355,1718190656157,-1349.54027461,0.000195,2]
[329228356,1718190656213,-198187.94717995,0.000195,2]
[329228357,1718190656224,-150.0,0.00019574,2]
[329228358,1718190656236,-441.25,0.00019588,2]
[329228359,1718190656248,-500.0,0.00019589,2]
[329228360,1718190656258,-500.0,0.00019589,2]
[329228361,1718190656268,-868.31,0.00019589,2]
[329228362,1718190656279,-500.0,0.00019589,2]
[329228363,1718190656293,-500.0,0.00019589,2]
[329228364,1718190656304,-606.43,0.00019589,2]
[329228365,1718190656315,-500.0,0.00019589,2]
[329228366,1718190656327,-500.0,0.00019589,2]
[329228367,1718190656337,-500.0,0.00019589,2]
[329228368,1718190656348,-500.0,0.00019589,2]
[329228369,1718190656359,-500.0,0.00019589,2]
[329228370,1718190656370,-278.55371129,0.00019589,2]
[329228371,1718190656381,-500.0,0.00019589,2]
[329228372,1718190656392,-500.0,0.00019589,2]
[329228373,1718190656402,-500.0,0.00019589,2]
[329228374,1718190656415,-500.0,0.00019589,2]
[329228375,1718190656427,-500.0,0.00019589,2]
[329228376,1718190656438,-500.0,0.00019589,2]
[329228377,1718190656450,-500.0,0.00019589,2]
[329228378,1718190656461,-500.0,0.00019589,2]
[329228379,1718190656472,-500.0,0.00019589,2]
[329228380,1718190656483,-500.0,0.00019589,2]
[329228381,1718190656496,-500.0,0.00019589,2]
[329228382,1718190656506,-500.0,0.00019589,2]
[329228383,1718190656517,-500.0,0.00019589,2]
[329228384,1718190656528,-1034.84,0.00019589,2]
[329228385,1718190656539,-500.0,0.00019589,2]
[329228386,1718190656549,-500.0,0.00019589,2]
[329228387,1718190656561,-500.0,0.00019589,2]
[329228388,1718190656790,-500.0,0.00019589,2]
[329228389,1718190656802,-500.0,0.00019589,2]
[329228390,1718190656813,-500.0,0.00019589,2]
[329228391,1718190656826,-500.0,0.00019589,2]
[329228392,1718190656837,-500.0,0.00019589,2]
[329228393,1718190656847,-500.0,0.00019589,2]
[329228394,1718190656858,-500.0,0.00019589,2]
[329228395,1718190656868,-720.37,0.00019589,2]
[329228396,1718190656878,-500.0,0.00019589,2]
[329228397,1718190656888,-500.0,0.00019589,2]
[329228398,1718190656913,-500.0,0.00019589,2]
[329228399,1718190656926,-337.93686069,0.00019589,2]
[329228400,1718190656936,-500.0,0.00019589,2]
[329228401,1718190656946,-546.31552434,0.00019589,2]
[329228402,1718190656956,-500.0,0.00019589,2]
[329228403,1718190656966,-500.0,0.00019589,2]
[329228404,1718190656977,-500.0,0.00019589,2]
[329228405,1718190656988,-500.0,0.00019589,2]
[329228406,1718190656998,-500.0,0.00019589,2]
[329228407,1718190657009,-591.74,0.00019589,2]
[329228408,1718190657020,-500.0,0.00019589,2]
[329228409,1718190657030,-500.0,0.00019589,2]
[329228410,1718190657041,-500.0,0.00019589,2]
[329228411,1718190657051,-1073.34,0.00019589,2]
[329228412,1718190657062,-500.0,0.00019589,2]
[329228413,1718190657072,-500.0,0.00019589,2]
[329228414,1718190657082,-623.4,0.00019589,2]
[329228415,1718190657093,-500.0,0.00019589,2]
[329228416,1718190657103,-500.0,0.00019589,2]
[329228417,1718190657114,-305.86362273,0.00019589,2]
[329228418,1718190657124,-500.0,0.00019589,2]
[329228419,1718190657134,-1053.16,0.00019589,2]
[329228420,1718190657145,-500.0,0.00019589,2]
[329228421,1718190657155,-785.1,0.00019589,2]
[329228422,1718190657166,-562.12,0.00019589,2]
[329228423,1718190657176,-500.0,0.00019589,2]
[329228424,1718190657187,-1460.99,0.00019589,2]
[329228425,1718190657198,-512.95,0.00019589,2]
[329228426,1718190657209,-500.0,0.00019589,2]
[329228427,1718190657220,-1894.78,0.00019589,2]
[329228428,1718190657231,-528.52822809,0.00019589,2]
[329228429,1718190657242,-500.0,0.00019589,2]
[329228430,1718190657253,-500.0,0.00019589,2]
[329228431,1718190657264,-620.08,0.00019589,2]
[329228432,1718190657275,-500.0,0.00019589,2]
[329228433,1718190657285,-1417.63,0.00019589,2]
[329228434,1718190657296,-193.30786291,0.00019589,2]
[329228435,1718190657307,-500.0,0.00019589,2]
[329228436,1718190657317,-500.0,0.00019589,2]
[329228437,1718190657329,-1081.64,0.00019589,2]
[329228438,1718190657340,-500.0,0.00019589,2]
[329228439,1718190657351,-925.62,0.00019589,2]